bitfinex/quotes_SOLUSD_20250406
["timestamp","ask_amount","ask_price","bid_price","bid_amount"]
[1743963423551,45.42217542,109.77,109.67,0.28432314]
[1743963423552,45.42217542,109.76,109.71,45.42217542]
[1743963424052,45.42217542,109.76,109.72,45.42217542]
[1743963424258,45.42217542,109.73,109.69,45.42217542]
[1743963424553,33.23181043,109.77,109.69,45.42217542]
[1743963424734,45.42217542,109.76,109.71,45.42217542]
[1743963424939,45.42217542,109.76,109.68,6.3822]
[1743963425333,45.42217542,109.74,109.69,45.42217542]
[1743963425536,45.42217542,109.73,109.68,45.42217542]
[1743963425952,45.42217542,109.72,109.65,45.42217542]
[1743963426135,45.42217542,109.72,109.67,45.42217542]
[1743963426336,45.42217542,109.73,109.68,45.42217542]
[1743963426961,59.78217542,109.75,109.68,45.42217542]
[1743963427154,45.42217542,109.72,109.68,45.42217542]
[1743963427462,45.42217542,109.73,109.68,45.42217542]
[1743963428039,14.36,109.75,109.71,45.42217542]
[1743963428242,45.42217542,109.76,109.71,45.42217542]
[1743963428445,422.4,109.83,109.66,22.3417]
[1743963428446,45.42217542,109.85,109.74,45.42217542]
[1743963428669,45.42217542,109.85,109.75,45.42217542]
[1743963428670,45.42217542,109.8,109.75,45.42217542]
[1743963429042,45.42217542,109.8,109.76,45.42217542]
[1743963429361,45.42217542,109.8,109.73,6.3787]
[1743963429565,0.063,109.82,109.79,45.42217542]
[1743963429766,0.063,109.82,109.8,45.42217542]
[1743963430334,0.063,109.82,109.81,45.42217542]
[1743963430677,0.063,109.82,109.81,1.10646294]
[1743963431038,0.063,109.82,109.81,7.48106294]
[1743963431236,0.063,109.82,109.8,51.79727542]
[1743963431458,0.063,109.82,109.81,45.42217542]
[1743963431963,0.063,109.82,109.81,64.49830899]
[1743963432563,0.0001,109.82,109.81,64.49830899]
[1743963432741,0.063,109.89,109.81,64.49830899]
[1743963432936,0.063,109.89,109.86,45.42217542]
[1743963433142,45.48517542,109.89,109.84,45.42217542]
[1743963433464,45.48517542,109.89,109.79,341.18]
[1743963433465,45.42217542,109.87,109.79,341.18]
[1743963433673,45.42217542,109.87,109.8,6.3752]
[1743963433857,45.42217542,109.87,109.82,45.42217542]
[1743963434166,0.063,109.89,109.83,45.42217542]
[1743963434334,45.42217542,109.87,109.8,6.3752]
[1743963434542,45.42217542,109.87,109.82,45.42217542]
[1743963435141,45.42217542,109.87,109.8,51.79737542]
[1743963435342,45.42217542,109.85,109.79,341.18]
[1743963435565,45.42217542,109.86,109.81,45.42217542]
[1743963435742,45.42217542,109.87,109.82,45.42217542]
[1743963436065,13.96,109.88,109.84,45.42217542]
[1743963436258,0.063,109.89,109.85,45.42217542]
[1743963436444,0.063,109.89,109.86,45.42217542]
[1743963436644,0.063,109.89,109.85,45.42217542]
[1743963436846,45.48517542,109.89,109.84,45.42217542]
[1743963437253,45.42217542,109.88,109.81,6.3746]
[1743963437658,45.42217542,109.88,109.83,45.42217542]
[1743963437845,45.42217542,109.88,109.84,45.42217542]
[1743963438366,45.42217542,109.86,109.77,15.9421]
[1743963438556,45.42217542,109.85,109.8,45.42217542]
[1743963438758,0.063,109.89,109.84,45.42217542]
[1743963438959,0.063,109.89,109.87,45.42217542]
[1743963439168,0.063,109.89,109.82,13.82]
[1743963439169,0.063,109.89,109.86,45.42217542]
[1743963439744,0.063,109.89,109.88,45.42217542]
[1743963440050,0.063,109.89,109.85,6.372]
[1743963440449,0.063,109.89,109.88,45.56433699]
[1743963440672,45.42217542,109.98,109.88,123.66048441]
[1743963440851,13.74,110.03,109.88,13.74]
[1743963440852,45.42217542,109.95,109.88,13.74]
[1743963441171,45.42217542,109.95,109.9,45.42217542]
[1743963441348,45.42217542,109.93,109.85,58.22707542]
[1743963441537,45.42217542,109.9,109.85,45.42217542]
[1743963442150,45.42217542,109.86,109.75,340.84]
[1743963442358,45.42217542,109.87,109.82,45.42217542]
[1743963442670,45.42217542,109.86,109.81,51.85967542]
[1743963442855,45.42217542,109.86,109.81,0.063]
[1743963443178,45.42217542,109.82,109.81,0.063]
[1743963443341,45.42217542,109.85,109.81,0.063]
[1743963443546,26.0,109.85,109.81,0.063]
[1743963443859,45.42217542,109.84,109.81,0.063]
[1743963444063,45.42217542,109.83,109.81,0.063]
[1743963444246,45.42217542,109.82,109.81,0.063]
[1743963444642,59.08217542,109.83,109.81,0.063]
[1743963446470,45.42217542,109.82,109.81,0.063]
[1743963446678,26.0,109.79,109.71,6.443]
[1743963446970,45.42217542,109.77,109.72,45.42217542]
[1743963447161,13.66,109.83,109.75,45.42217542]
[1743963447362,45.42217542,109.82,109.77,45.42217542]
[1743963447582,45.42217542,109.84,109.76,6.3775]
[1743963447746,45.42217542,109.84,109.79,45.42217542]
[1743963447949,45.42217542,109.82,109.77,45.42217542]
[1743963448253,45.42217542,109.82,109.75,6.3778]
[1743963448254,45.42217542,109.83,109.75,51.79997542]
[1743963448607,45.42217542,109.82,109.78,45.42217542]
[1743963448740,45.42217542,109.82,109.75,51.79997542]
[1743963449061,39.48,109.82,109.75,45.42217542]
[1743963449371,39.48,109.82,109.72,6.3798]
[1743963449541,45.42217542,109.8,109.75,45.42217542]
[1743963449746,45.42217542,109.77,109.71,0.063]
[1743963450049,26.0,109.76,109.71,0.063]
[1743963450251,19.07613357,109.75,109.71,0.063]
[1743963450577,45.42217542,109.74,109.71,0.063]
[1743963450747,45.42217542,109.75,109.71,0.063]
[1743963450947,44.79181043,109.76,109.71,0.063]
[1743963451142,26.0,109.74,109.71,0.063]
[1743963451848,71.84866013,109.72,109.71,0.063]
[1743963452365,85.22866013,109.72,109.71,0.063]
[1743963452704,85.22866013,109.72,109.63,0.03]
[1743963452705,26.0,109.68,109.63,0.03]
[1743963452873,45.84866013,109.64,109.63,0.03]
[1743963453073,32.00964886,109.67,109.63,0.03]
[1743963453282,0.42648471,109.66,109.63,0.03]
[1743963453484,0.42648471,109.64,109.63,0.03]
[1743963453664,13.36,109.67,109.63,0.03]
[1743963453862,26.0,109.68,109.63,0.03]
[1743963454074,39.36,109.72,109.63,0.03]
[1743963454380,45.42217542,109.7,109.63,0.03]
[1743963454565,26.0,109.69,109.65,45.42217542]
[1743963454767,13.36,109.72,109.66,45.42217542]
[1743963454963,45.42217542,109.69,109.63,0.03]
[1743963455167,0.03,110.04,110.0,0.5]
[1743963455463,5.34050955,110.02,110.01,127.69283634]
[1743963455663,5.34050955,110.02,110.01,51.78517542]
[1743963455990,5.34050955,110.02,109.99,21.3036]
[1743963456187,77.89781207,110.1,110.01,45.42217542]
[1743963456365,67.39200545,110.1,110.06,45.42217542]
[1743963456565,47.47007823,110.1,110.01,45.10828587]
[1743963456789,47.47007823,110.1,110.08,45.34142999]
[1743963456993,47.47007823,110.1,110.07,91.14462387]
[1743963457186,47.47007823,110.1,110.08,45.42217542]
[1743963457396,47.47007823,110.1,110.07,45.42217542]
[1743963457695,47.47007823,110.1,110.05,90.73436948]
[1743963457884,47.47007823,110.1,110.06,45.42217542]
[1743963458086,0.063,110.11,110.07,45.42217542]
[1743963459001,0.063,110.11,110.08,45.42217542]
[1743963459287,0.063,110.11,110.0,45.17113083]
[1743963459594,45.42217542,110.09,110.03,45.42217542]
[1743963459770,45.42217542,110.08,109.98,45.64922514]
[1743963459974,60.20217542,110.09,110.03,45.42217542]
[1743963460175,14.78,110.09,110.01,45.10828587]
[1743963460381,26.0,110.06,110.03,45.42217542]
[1743963460683,71.42217542,110.05,109.99,45.42217542]
[1743963460879,14.78,110.09,109.96,18.64964886]
[1743963461078,45.42217542,110.08,110.03,45.42217542]
[1743963461385,26.0,110.09,110.03,45.42217542]
[1743963461584,26.0,110.09,110.02,45.42217542]
[1743963461778,0.063,110.11,110.03,45.42217542]
[1743963461981,0.063,110.11,110.05,45.42217542]
[1743963461982,45.42217542,110.1,110.05,45.42217542]
[1743963462204,45.42217542,110.09,110.03,45.42217542]
[1743963462502,45.42217542,110.07,110.0,45.42217542]
[1743963462796,45.42217542,110.07,109.95,45.42217542]
[1743963462797,45.42217542,110.07,110.01,45.42217542]
[1743963463098,9.9588306,110.09,110.01,45.42217542]
[1743963463285,35.9588306,110.09,110.04,45.42217542]
[1743963463482,55.38100602,110.09,110.04,45.42217542]
[1743963463682,9.9588306,110.09,110.04,45.42217542]
[1743963463888,9.9588306,110.09,110.05,45.42217542]
[1743963464204,9.9588306,110.09,110.04,45.42217542]
[1743963464374,55.38100602,110.09,110.04,45.42217542]
[1743963464775,9.9588306,110.09,110.04,45.42217542]
[1743963465004,9.9588306,110.09,110.05,45.42217542]
[1743963465493,9.9588306,110.09,110.06,45.42217542]
[1743963465703,9.9588306,110.09,110.07,45.42217542]
[1743963466309,9.9588306,110.09,110.08,45.42217542]
[1743963466505,9.9588306,110.09,110.07,45.42217542]
[1743963466698,9.9588306,110.09,110.05,45.42217542]
[1743963467111,9.9588306,110.09,110.06,45.42217542]
[1743963467285,9.9588306,110.09,110.0,59.88217542]
[1743963467478,55.38100602,110.09,110.04,45.42217542]
[1743963467806,55.38100602,110.09,110.01,0.14216157]
[1743963467980,55.38100602,110.09,110.03,45.42217542]
[1743963468691,45.42217542,110.08,110.03,45.42217542]
[1743963469208,9.9888306,110.09,110.03,45.42217542]
[1743963469509,45.42217542,110.08,110.03,45.42217542]
[1743963469815,45.42217542,110.07,110.02,45.42217542]
[1743963469999,45.42217542,110.06,110.01,45.42217542]
[1743963470208,45.42217542,110.08,110.03,45.42217542]
[1743963470609,55.41100602,110.09,110.04,45.42217542]
[1743963470806,9.9888306,110.09,110.01,19.07613357]
[1743963471141,9.9888306,110.09,110.05,45.42217542]
[1743963471787,9.9888306,110.09,110.01,19.07613357]
[1743963471788,9.9888306,110.09,110.01,26.42648471]
[1743963472209,9.9888306,110.09,110.0,45.42217542]
[1743963472396,9.9888306,110.09,110.04,45.42217542]
[1743963472593,9.9888306,110.09,110.01,0.14216157]
[1743963472594,45.42217542,110.08,110.01,0.14216157]
[1743963472797,45.42217542,110.08,110.03,45.42217542]
[1743963472997,9.9888306,110.09,110.05,45.42217542]
[1743963473223,9.9888306,110.09,110.06,45.42217542]
[1743963473406,55.41100602,110.09,110.0,45.42217542]
[1743963473717,9.9888306,110.09,110.05,45.42217542]
[1743963474089,9.9888306,110.09,110.04,45.42217542]
[1743963474689,55.41100602,110.09,110.04,45.42217542]
[1743963474892,55.41100602,110.09,110.04,45.84866013]
[1743963475112,9.9888306,110.09,110.03,0.42648471]
[1743963475312,55.41100602,110.09,110.02,0.28432314]
[1743963475490,55.41100602,110.09,110.04,45.42217542]
[1743963475688,45.42217542,110.07,109.98,340.54]
[1743963475909,45.42217542,110.07,110.02,45.42217542]
[1743963476219,45.42217542,110.04,109.96,0.14216157]
[1743963476388,45.42217542,110.04,110.0,45.42217542]
[1743963476592,45.42217542,110.06,110.01,45.42217542]
[1743963476911,59.46217542,110.07,110.02,45.42217542]
[1743963477307,45.42217542,110.06,110.02,45.42217542]
[1743963477508,45.42217542,110.06,109.98,0.14216157]
[1743963477701,14.04,110.07,110.0,45.42217542]
[1743963477899,14.04,110.07,110.02,45.42217542]
[1743963478414,45.42217542,110.06,110.01,45.42217542]
[1743963478717,59.46217542,110.07,110.02,45.42217542]
[1743963479102,45.42217542,110.06,110.01,45.42217542]
[1743963479305,9.9588306,110.06,110.02,45.42217542]
[1743963479790,55.38100602,110.06,110.01,45.42217542]
[1743963480217,9.9588306,110.06,110.02,45.42217542]
[1743963480592,9.9588306,110.06,109.99,0.28432314]
[1743963480593,55.38100602,110.06,109.99,0.28432314]
[1743963480791,55.38100602,110.06,110.01,45.42217542]
[1743963481014,9.9588306,110.06,110.03,45.42217542]
[1743963481394,9.9588306,110.06,110.04,45.42217542]
[1743963481833,9.9588306,110.06,110.03,45.42217542]
[1743963482506,9.9588306,110.06,110.04,45.42217542]
[1743963483295,9.9588306,110.06,110.05,45.42217542]
[1743963483500,9.9588306,110.06,110.05,109.92048441]
[1743963483914,0.03,110.09,110.08,26.0]
[1743963484118,0.03,110.09,110.08,90.07182428]
[1743963485326,0.03,110.09,110.08,45.84866013]
[1743963485513,0.03,110.09,110.08,64.49830899]
[1743963485693,0.063,110.11,110.08,64.49830899]
[1743963485694,0.063,110.11,110.1,0.14216157]
[1743963485893,0.063,110.11,110.1,109.92048441]
[1743963486096,0.063,110.11,110.1,91.27083555]
[1743963486318,0.063,110.11,110.1,97.62863555]
[1743963486516,0.063,110.11,110.1,116.27828441]
[1743963486702,0.063,110.11,110.08,8.01962956]
[1743963486917,0.063,110.11,110.08,0.42648471]
[1743963487115,45.48517542,110.11,110.07,30.0]
[1743963487336,45.42217542,110.09,110.04,45.42217542]
[1743963487500,45.42217542,110.06,109.99,0.063]
[1743963487706,13.62,110.08,110.04,45.42217542]
[1743963487929,13.62,110.08,110.05,45.42217542]
[1743963488336,13.62,110.08,110.01,18.79181043]
[1743963488537,13.62,110.08,110.05,45.42217542]
[1743963488705,59.04217542,110.08,110.04,45.42217542]
[1743963488902,45.42217542,110.07,110.02,45.42217542]
[1743963489223,45.42217542,110.05,109.99,0.063]
[1743963489407,13.62,110.08,110.01,45.42217542]
[1743963489610,45.42217542,110.06,110.02,45.42217542]
[1743963490207,13.62,110.08,110.02,45.42217542]
[1743963490530,45.42217542,110.09,110.04,45.42217542]
[1743963490899,45.42217542,110.07,110.03,45.42217542]
[1743963491329,45.42217542,110.07,110.02,45.42217542]
[1743963491626,45.42217542,110.06,110.01,45.42217542]
[1743963491804,45.42217542,110.06,110.02,45.42217542]
[1743963492133,45.42217542,110.06,109.99,0.063]
[1743963492431,45.42217542,110.06,110.02,45.42217542]
[1743963492619,13.5,110.09,110.03,45.42217542]
[1743963492801,45.42217542,110.08,110.04,45.42217542]
[1743963493207,45.42217542,110.08,110.03,45.42217542]
[1743963493398,45.42217542,110.08,110.0,0.14216157]
[1743963493604,13.5,110.09,110.03,45.42217542]
[1743963493802,45.42217542,110.07,110.0,45.56433699]
[1743963493997,19.7391,110.08,109.99,0.063]
[1743963494314,45.42217542,110.04,109.99,75.48517542]
[1743963494514,13.36,110.07,109.99,30.063]
[1743963494722,13.36,110.07,109.99,75.48517542]
[1743963494907,45.42217542,110.04,109.99,30.063]
[1743963495104,45.42217542,110.04,110.0,45.42217542]
[1743963495624,58.72217542,110.05,110.01,45.42217542]
[1743963495803,58.72217542,110.06,110.01,45.42217542]
[1743963496005,45.42217542,110.04,109.99,0.063]
[1743963496227,64.49830899,110.1,110.0,45.42217542]
[1743963496540,45.42217542,110.05,110.0,45.42217542]
[1743963496703,13.26,110.04,110.0,45.42217542]
[1743963497029,12.76,110.04,110.0,45.42217542]
[1743963497209,58.18217542,110.04,109.99,0.063]
[1743963497409,58.64217542,110.04,110.0,45.42217542]
[1743963498134,13.22,110.04,109.99,0.063]
[1743963498311,45.42217542,110.05,110.0,45.42217542]
[1743963498506,58.60217542,110.05,110.0,45.42217542]
[1743963498811,45.42217542,110.02,109.99,0.063]
[1743963499005,64.35614742,110.1,109.99,0.063]
[1743963499222,64.35614742,110.1,110.0,45.42217542]
[1743963499223,13.16,110.09,110.0,45.42217542]
[1743963499425,45.42217542,110.03,109.99,0.063]
[1743963499609,45.42217542,110.02,109.99,0.063]
[1743963500032,58.58217542,110.03,109.99,0.063]
[1743963500223,58.56217542,110.04,110.0,45.42217542]
[1743963500410,13.14,110.04,109.99,0.063]
[1743963500623,45.42217542,110.02,110.0,0.063]
[1743963501708,45.42217542,110.01,110.0,0.063]
[1743963501909,45.42217542,110.02,110.0,0.063]
[1743963502540,45.42217542,110.03,110.0,0.063]
[1743963502840,45.42217542,110.02,110.0,0.063]
[1743963503060,45.42217542,110.01,110.0,0.063]
[1743963503425,45.45217542,110.1,110.0,0.063]
[1743963503735,45.42217542,110.06,110.01,45.42217542]
[1743963504048,45.45217542,110.1,110.01,45.42217542]
[1743963504251,45.42217542,110.05,110.01,45.42217542]
[1743963504540,13.06,110.06,110.03,45.42217542]
[1743963504719,13.06,110.06,110.01,45.42217542]
[1743963504720,45.42217542,110.05,110.01,45.42217542]
[1743963504918,45.42217542,110.05,110.0,45.48517542]
[1743963505116,45.42217542,110.05,110.01,45.42217542]
[1743963505346,58.48217542,110.06,110.01,45.42217542]
[1743963505518,13.06,110.06,110.0,0.063]
[1743963505720,13.06,110.06,110.01,45.42217542]
[1743963505921,58.48217542,110.06,110.0,0.063]
[1743963506140,58.48217542,110.06,110.01,45.42217542]
[1743963506342,13.06,110.06,110.0,0.063]
[1743963506529,58.48217542,110.06,110.02,45.42217542]
[1743963506834,45.42217542,110.09,110.05,45.42217542]
[1743963507038,45.42217542,110.08,110.04,45.42217542]
[1743963507240,45.42217542,110.05,110.0,0.063]
[1743963507444,45.42217542,110.03,110.0,0.063]
[1743963507749,26.0,110.07,110.0,0.063]
[1743963507950,45.42217542,110.03,110.0,0.063]
[1743963508620,64.52830899,110.1,110.0,0.063]
[1743963508621,26.0,110.06,110.0,45.48517542]
[1743963508841,45.42217542,110.04,110.0,0.063]
[1743963509028,45.42217542,110.03,110.0,0.063]
[1743963509240,45.42217542,110.04,110.0,0.063]
[1743963509420,45.42217542,110.03,110.0,0.063]
[1743963510328,45.42217542,110.04,110.0,0.063]
[1743963510634,58.32217542,110.05,110.0,0.063]
[1743963510840,45.42217542,110.03,110.0,0.063]
[1743963511228,58.26217542,110.04,110.0,0.063]
[1743963511633,45.42217542,110.02,110.0,0.063]
[1743963512425,45.42217542,110.03,110.0,0.063]
[1743963512649,45.42217542,110.05,110.0,0.063]
[1743963512846,45.42217542,110.05,109.95,45.56433699]
[1743963512847,26.0,109.97,109.91,0.063]
[1743963513052,90.84435084,109.92,109.88,13.86606889]
[1743963513259,26.0,109.87,109.86,12.23293064]
[1743963513428,26.0,109.87,109.81,3.8923]
[1743963513429,0.28432314,109.86,109.81,3.8923]
[1743963513632,26.0,109.82,109.81,3.8923]
[1743963513832,0.14216157,109.8,109.71,80.52065921]
[1743963514027,12.96,109.79,109.72,30.0]
[1743963514469,45.42217542,109.76,109.72,30.0]
[1743963514751,12.94,109.81,109.75,45.42217542]
[1743963514935,45.42217542,109.77,109.72,75.42217542]
[1743963515140,45.42217542,109.75,109.72,30.0]
[1743963515338,45.42217542,109.73,109.72,30.0]
[1743963515927,90.84435084,109.73,109.62,13.1621]
[1743963516128,45.42217542,109.7,109.65,30.0]
[1743963516349,26.0,109.66,109.65,30.0]
[1743963516565,19.07613357,109.68,109.6,45.42217542]
[1743963516732,45.42217542,109.66,109.57,6.3886]
[1743963517068,45.42217542,109.65,109.57,45.42217542]
[1743963517359,12.96,109.64,109.51,7.40357997]
[1743963517529,12.96,109.64,109.54,26.0]
[1743963517726,12.96,109.64,109.51,7.40357997]
[1743963517930,12.96,109.64,109.51,7.40397997]
[1743963518164,30.61349375,109.63,109.57,45.42217542]
[1743963518353,30.61349375,109.63,109.52,0.5]
[1743963518553,45.42217542,109.62,109.56,26.0]
[1743963518738,30.61349375,109.63,109.55,45.42217542]
[1743963519054,17.55349375,109.62,109.59,45.42217542]
[1743963519353,17.55349375,109.62,109.57,0.28432314]
[1743963519562,17.55349375,109.62,109.61,45.42217542]
[1743963519735,105.32096255,109.67,109.61,45.42217542]
[1743963520058,105.32096255,109.67,109.66,45.42217542]
[1743963520238,105.32096255,109.67,109.62,6.3852]
[1743963520436,105.32096255,109.67,109.65,45.42217542]
[1743963520747,105.32096255,109.67,109.63,26.0]
[1743963520936,23.40465834,109.66,109.63,26.0]
[1743963521133,23.40465834,109.66,109.65,45.42217542]
[1743963521657,45.42217542,109.71,109.65,45.42217542]
[1743963521841,45.92217542,109.68,109.6,45.42217542]
[1743963522029,0.5,109.65,109.57,340.9]
[1743963522233,0.5,109.63,109.59,45.42217542]
[1743963522464,0.5,109.66,109.61,45.42217542]
[1743963522659,13.32,109.67,109.63,45.42217542]
[1743963522860,0.5,109.7,109.66,45.42217542]
[1743963523070,0.5,109.7,109.61,19.07613357]
[1743963523071,45.92217542,109.7,109.61,19.07613357]
[1743963523234,0.5,109.69,109.61,19.07613357]
[1743963523435,45.42217542,109.7,109.66,45.42217542]
[1743963523436,0.5,109.7,109.66,45.42217542]
[1743963523684,0.5,109.7,109.62,0.14216157]
[1743963523835,45.92217542,109.71,109.67,45.42217542]
[1743963524035,0.5,109.7,109.62,0.14216157]
[1743963524263,0.5,109.7,109.66,45.42217542]
[1743963524445,0.5,109.71,109.66,45.42217542]
[1743963524641,0.5,109.7,109.63,6.3851]
[1743963524839,0.5,109.7,109.67,45.42217542]
[1743963525058,0.5,109.71,109.67,45.42217542]
[1743963525265,0.5,109.71,109.68,45.42217542]
[1743963525639,0.5,109.7,109.63,6.3851]
[1743963525843,0.5,109.67,109.61,0.14216157]
[1743963526165,0.5,109.69,109.65,45.42217542]
[1743963526338,0.5,109.7,109.65,45.42217542]
[1743963526534,0.5,109.68,109.63,0.14216157]
[1743963526765,0.5,109.68,109.65,45.42217542]
[1743963527061,0.5,109.7,109.67,45.42217542]
[1743963527278,0.5,109.69,109.63,0.14216157]
[1743963527561,0.5,109.68,109.64,45.42217542]
[1743963527764,45.42217542,109.66,109.6,6.3867]
[1743963527937,0.5,109.67,109.55,45.42217542]
[1743963527938,0.5,109.63,109.62,0.03]
[1743963528142,0.5,109.64,109.62,0.03]
[1743963528365,45.42217542,109.64,109.62,0.03]
[1743963528565,45.92217542,109.65,109.62,0.03]
[1743963528752,45.42217542,109.66,109.62,0.03]
[1743963529073,59.28217542,109.67,109.62,45.45217542]
[1743963529574,0.5,109.69,109.62,0.31432314]
[1743963529778,0.5,109.69,109.66,45.42217542]
[1743963529954,13.88,109.74,109.68,45.42217542]
[1743963530150,0.5,109.71,109.66,0.14216157]
[1743963530477,0.5,109.71,109.68,45.42217542]
[1743963530674,0.5,109.71,109.69,45.42217542]
[1743963530878,0.5,109.69,109.62,6.4156]
[1743963531193,0.5,109.71,109.67,45.42217542]
[1743963531385,140.13204192,109.77,109.69,45.42217542]
[1743963531386,0.5,109.74,109.69,45.42217542]
[1743963531681,0.5,109.72,109.69,45.42217542]
[1743963531846,0.5,109.72,109.66,0.14216157]
[1743963532051,45.42217542,109.7,109.62,376.9798]
[1743963532269,45.92217542,109.68,109.62,361.0156]
[1743963532567,45.92217542,109.66,109.62,0.03]
[1743963532774,0.5,109.69,109.62,0.03]
[1743963532941,45.42217542,109.64,109.62,0.03]
[1743963533146,45.42217542,109.7,109.62,0.03]
[1743963533147,0.5,109.65,109.62,0.03]
[1743963533444,45.92217542,109.65,109.62,0.03]
[1743963533643,0.5,109.68,109.62,51.83767542]
[1743963533876,45.92217542,109.68,109.63,45.42217542]
[1743963534173,0.5,109.63,109.62,0.03]
[1743963534761,45.92217542,109.63,109.62,0.03]
[1743963534959,45.42217542,109.63,109.62,0.03]
[1743963535168,45.92217542,109.63,109.62,0.03]
[1743963535463,0.5,109.64,109.62,0.03]
[1743963535673,0.5,109.63,109.62,0.03]
[1743963536059,45.92217542,109.63,109.62,0.03]
[1743963537675,0.5,109.59,109.47,0.14216157]
[1743963537881,45.42217542,109.57,109.52,45.42217542]
[1743963538085,45.92217542,109.57,109.52,45.42217542]
[1743963538385,45.92217542,109.55,109.51,0.03]
[1743963538705,45.92217542,109.56,109.51,45.45217542]
[1743963538992,45.42217542,109.56,109.52,45.42217542]
[1743963539159,0.5,109.58,109.52,45.42217542]
[1743963539358,0.5,109.58,109.53,45.42217542]
[1743963539657,0.5,109.61,109.56,45.42217542]
[1743963539978,45.92217542,109.61,109.57,45.42217542]
[1743963540178,0.5,109.63,109.59,45.42217542]
[1743963540558,45.92217542,109.65,109.6,45.42217542]
[1743963540758,0.5,109.64,109.61,45.42217542]
[1743963540978,0.5,109.64,109.57,22.50226157]
[1743963540979,45.92217542,109.65,109.6,45.42217542]
[1743963541281,0.5,109.64,109.6,45.42217542]
[1743963541489,0.5,109.66,109.62,45.42217542]
[1743963541651,58.82217542,109.67,109.63,45.42217542]
[1743963541859,45.92217542,109.65,109.61,45.42217542]
[1743963542080,45.92217542,109.65,109.6,71.42217542]
[1743963542354,0.5,109.59,109.54,6.3903]
[1743963542568,0.5,109.59,109.55,45.42217542]
[1743963542866,0.5,109.58,109.53,6.3907]
[1743963543087,0.5,109.58,109.52,6.3915]
[1743963543291,45.92217542,109.56,109.51,45.45217542]
[1743963543595,0.5,109.53,109.51,0.03]
[1743963543801,45.42217542,109.52,109.51,0.03]
[1743963544096,0.5,109.54,109.51,0.03]
[1743963544300,45.92217542,109.55,109.51,0.03]
[1743963544474,45.92217542,109.54,109.51,0.03]
[1743963544668,0.5,109.54,109.51,0.03]
[1743963545469,45.92217542,109.54,109.51,0.03]
[1743963545680,0.5,109.54,109.51,0.03]
[1743963545981,13.98,109.56,109.51,45.45217542]
[1743963546290,0.5,109.57,109.54,45.42217542]
[1743963546492,45.92217542,109.55,109.51,0.03]
[1743963546800,45.92217542,109.52,109.51,0.03]
[1743963547001,45.92217542,109.53,109.51,0.03]
[1743963547307,45.92217542,109.52,109.51,0.03]
[1743963547474,0.5,109.52,109.51,0.03]
[1743963547783,0.5,109.53,109.51,0.03]
[1743963547987,45.42217542,109.53,109.51,0.03]
[1743963548167,0.5,109.54,109.51,0.03]
[1743963548363,13.72,109.56,109.51,0.03]
[1743963548364,0.5,109.52,109.51,0.03]
[1743963548678,18.933972,109.57,109.51,0.03]
[1743963548679,0.5,109.55,109.51,0.03]
[1743963548885,0.5,109.54,109.51,0.03]
[1743963549094,18.933972,109.59,109.52,0.14216157]
[1743963549095,45.92217542,109.59,109.52,0.14216157]
[1743963549300,0.5,109.54,109.51,0.03]
[1743963549599,0.5,109.6,109.53,45.42217542]
[1743963549797,0.5,109.59,109.53,0.14216157]
[1743963549970,0.5,109.6,109.58,45.42217542]
[1743963550300,12.5604,109.66,109.57,0.14216157]
[1743963550301,0.5,109.64,109.57,0.14216157]
[1743963550595,0.5,109.62,109.56,6.3891]
[1743963550773,0.5,109.63,109.59,45.42217542]
[1743963551173,0.5,109.64,109.61,45.42217542]
[1743963551578,0.5,109.66,109.62,45.42217542]
[1743963551898,45.92217542,109.66,109.61,45.42217542]
[1743963552200,23.50223039,109.67,109.65,45.42217542]
[1743963552500,14.6,109.7,109.61,26.0]
[1743963552678,0.5,109.67,109.59,15.9674]
[1743963552880,45.42217542,109.68,109.63,45.42217542]
[1743963553065,45.42217542,109.68,109.6,70.88510899]
[1743963553066,0.5,109.69,109.66,45.42217542]
[1743963553592,0.5,109.71,109.68,45.42217542]
[1743963553775,0.5,109.7,109.65,45.42217542]